bitfinex/quotes_BTCUSD_20250709
["timestamp","ask_amount","ask_price","bid_price","bid_amount"]
[1752059066852,0.79631863,109100.0,109090.0,0.06471376]
[1752059067067,0.88775556,109100.0,109090.0,0.02356319]
[1752059068671,0.88775556,109100.0,109090.0,0.01713623]
[1752059069694,0.88775556,109100.0,109090.0,0.02356365]
[1752059074569,0.91530656,109100.0,109090.0,0.00642742]
[1752059074787,0.91530656,109100.0,109090.0,0.02355635]
[1752059078720,0.30849534,109100.0,109090.0,0.02355635]
[1752059078924,0.91530656,109100.0,109090.0,0.02355635]
[1752059080393,0.91530656,109100.0,109090.0,0.02355103]
[1752059081056,0.30849534,109100.0,109090.0,0.02355103]
[1752059081261,0.91530656,109100.0,109090.0,0.02355103]
[1752059083428,0.91530656,109100.0,109090.0,0.02354643]
[1752059086433,0.91530656,109100.0,109090.0,0.02354862]
[1752059087227,0.88260656,109100.0,109090.0,0.02354862]
[1752059087432,0.27579534,109100.0,109090.0,0.02354862]
[1752059087653,0.88260656,109100.0,109090.0,0.02354862]
[1752059089342,0.88260656,109100.0,109090.0,0.01712687]
[1752059090299,0.01454085,109090.0,109080.0,0.09055195]
[1752059090548,0.45722646,109090.0,109080.0,0.09055195]
[1752059091696,0.45722646,109090.0,109080.0,0.09155195]
[1752059092323,0.45722646,109090.0,109080.0,0.11511257]
[1752059092531,0.45722646,109090.0,109080.0,0.11611257]
[1752059096435,0.45722646,109090.0,109080.0,0.17094376]
[1752059100461,0.15382085,109090.0,109080.0,0.17094376]
[1752059100697,0.45722646,109090.0,109080.0,0.17094376]
[1752059101117,0.15382085,109090.0,109080.0,0.17094376]
[1752059101349,0.45722646,109090.0,109080.0,0.17094376]
[1752059102486,0.45722646,109090.0,109080.0,0.17095406]
[1752059105550,0.45722646,109090.0,109080.0,0.17095405]
[1752059106385,0.45722646,109090.0,109080.0,0.17098149]
[1752059109803,0.15382085,109090.0,109080.0,0.17098149]
[1752059110133,0.45722646,109090.0,109080.0,0.17098149]
[1752059111653,0.31794646,109090.0,109080.0,0.17098149]
[1752059111949,0.45698646,109090.0,109080.0,0.17098149]
[1752059112817,0.45698646,109090.0,109080.0,0.17102171]
[1752059113782,0.01454085,109090.0,109080.0,0.17102171]
[1752059113987,0.45698646,109090.0,109080.0,0.17102171]
[1752059116645,0.45698646,109090.0,109080.0,0.15385927]
[1752059116853,0.45698646,109090.0,109080.0,0.17102216]
[1752059119484,0.31794646,109090.0,109080.0,0.17102216]
[1752059119685,0.45690646,109090.0,109080.0,0.17102216]
[1752059122485,0.01454085,109090.0,109080.0,0.17102216]
[1752059122804,0.15350085,109090.0,109080.0,0.17102216]
[1752059124320,0.01454085,109090.0,109080.0,0.47442777]
[1752059124549,0.15346085,109090.0,109080.0,0.47442777]
[1752059125938,0.15346085,109090.0,109080.0,0.46799186]
[1752059126153,0.15346085,109090.0,109080.0,0.47442798]
[1752059128862,0.01454085,109090.0,109080.0,0.47442798]
[1752059129065,0.15342085,109090.0,109080.0,0.47442798]
[1752059134964,0.15342085,109090.0,109080.0,0.47442808]
[1752059136356,0.15342085,109090.0,109080.0,0.17102247]
[1752059136584,0.15342085,109090.0,109080.0,0.47442808]
[1752059136829,0.15342085,109090.0,109080.0,0.17102247]
[1752059137007,0.15342085,109090.0,109080.0,0.47442808]
[1752059154055,0.01454085,109090.0,109080.0,0.47442808]
[1752059154355,0.15330085,109090.0,109080.0,0.47442808]
[1752059155551,0.15330085,109090.0,109080.0,0.47442803]
[1752059161769,0.15330085,109090.0,109080.0,0.45082897]
[1752059161946,0.15330085,109090.0,109080.0,0.47442802]
[1752059163122,0.15330085,109090.0,109080.0,0.47442833]
[1752059163536,0.15330085,109090.0,109080.0,0.47442848]
[1752059166437,0.15330085,109090.0,109080.0,0.47442781]
[1752059167047,0.15330085,109090.0,109080.0,0.1710222]
[1752059167324,0.15330085,109090.0,109080.0,0.47442781]
[1752059169291,0.15330085,109090.0,109080.0,0.46799234]
[1752059169480,0.15330085,109090.0,109080.0,0.47442758]
[1752059169682,0.15330085,109090.0,109080.0,0.47442517]
[1752059179549,0.01454085,109090.0,109080.0,0.77783078]
[1752059179750,0.15318085,109090.0,109080.0,0.17101956]
[1752059179875,0.15318085,109090.0,109080.0,0.47442517]
[1752059180297,0.15318085,109090.0,109080.0,0.47441979]
[1752059183924,0.15318085,109090.0,109080.0,0.45725914]
[1752059185225,0.15318085,109090.0,109080.0,0.15385353]
[1752059185420,0.15318085,109090.0,109080.0,0.45725914]
[1752059186004,0.15318085,109090.0,109080.0,0.41607342]
[1752059186284,0.15318085,109090.0,109080.0,0.45725935]
[1752059194237,0.01454085,109090.0,109080.0,0.45725935]
[1752059194552,0.15318085,109090.0,109080.0,0.759338]
[1752059194770,0.01454085,109090.0,109080.0,0.759338]
[1752059196348,0.01454085,109090.0,109080.0,0.75933751]
[1752059197720,0.00126656,109100.0,109090.0,0.0323]
[1752059197931,0.00126656,109100.0,109090.0,1.01882858]
[1752059198135,0.00126656,109100.0,109090.0,0.71542297]
[1752059198340,0.00126656,109100.0,109090.0,0.67774479]
[1752059199166,0.00226656,109100.0,109090.0,0.9811504]
[1752059199803,0.00226656,109100.0,109090.0,0.67774479]
[1752059200707,0.00226656,109100.0,109090.0,0.73257598]
[1752059201183,0.00226656,109100.0,109090.0,1.03598159]
[1752059201443,0.00226656,109100.0,109090.0,1.06313087]
[1752059202615,0.00326656,109100.0,109090.0,1.06313087]
[1752059202833,0.00326656,109100.0,109090.0,1.10430338]
[1752059203257,0.00326656,109100.0,109090.0,1.02195945]
[1752059204155,0.00326656,109100.0,109090.0,1.0155247]
[1752059204358,0.00326656,109100.0,109090.0,1.02190678]
[1752059207410,0.00326656,109100.0,109090.0,1.06298329]
[1752059207636,0.00326656,109100.0,109090.0,1.02190678]
[1752059208267,0.00326656,109100.0,109090.0,1.06297813]
[1752059208476,0.0002,109110.0,109100.0,0.63861122]
[1752059208689,0.0002,109110.0,109100.0,0.98045708]
[1752059210063,0.0022,109110.0,109100.0,0.98045708]
[1752059210286,0.0002,109110.0,109100.0,0.98045708]
[1752059210700,0.0012,109110.0,109100.0,0.98045708]
[1752059211074,0.0012,109110.0,109100.0,1.03528827]
[1752059211521,0.0032,109110.0,109100.0,0.9942175]
[1752059211736,0.0032,109110.0,109100.0,1.03525989]
[1752059211937,0.0012,109110.0,109100.0,1.03525989]
[1752059213609,0.0012,109110.0,109100.0,1.04448369]
[1752059213971,0.0012,109110.0,109100.0,1.0444752]
[1752059214171,0.0012,109110.0,109100.0,0.98962379]
[1752059214795,0.0012,109110.0,109100.0,0.98039999]
[1752059218439,0.0012,109110.0,109100.0,0.98947183]
[1752059220855,0.0012,109110.0,109100.0,0.98039999]
[1752059221928,0.0012,109110.0,109100.0,0.98962016]
[1752059222362,0.0012,109110.0,109100.0,1.03523118]
[1752059222579,0.0012,109110.0,109100.0,0.98039999]
[1752059224420,0.0012,109110.0,109100.0,1.03523118]
[1752059227710,0.0012,109110.0,109100.0,1.03527419]
[1752059229256,0.0012,109110.0,109100.0,0.9942318]
[1752059230817,0.0012,109110.0,109100.0,0.99423792]
[1752059232360,0.0012,109110.0,109100.0,1.07658185]
[1752059233681,0.0012,109110.0,109100.0,1.07658304]
[1752059240053,0.0012,109110.0,109100.0,1.07659744]
[1752059245352,0.0012,109110.0,109100.0,1.07660526]
[1752059246901,0.0012,109110.0,109100.0,1.07760526]
[1752059247108,0.0002,109110.0,109100.0,1.07760526]
[1752059247520,0.0002,109110.0,109100.0,1.07860526]
[1752059248255,0.0002,109110.0,109100.0,1.07860537]
[1752059248462,0.0002,109110.0,109100.0,0.77519976]
[1752059248897,0.0002,109110.0,109100.0,1.07860537]
[1752059252885,0.0002,109110.0,109100.0,0.47179415]
[1752059253072,0.0002,109110.0,109100.0,1.07860537]
[1752059259933,0.0002,109110.0,109100.0,1.07860574]
[1752059265756,0.0002,109110.0,109100.0,1.07860519]
[1752059271105,0.0002,109110.0,109100.0,0.47179397]
[1752059271316,0.0002,109110.0,109100.0,0.77519958]
[1752059271518,0.0002,109110.0,109100.0,0.77520022]
[1752059272420,0.0002,109110.0,109100.0,1.07860583]
[1752059275200,0.0002,109110.0,109100.0,0.47179461]
[1752059275408,0.0002,109110.0,109100.0,0.77520022]
[1752059275829,0.0002,109110.0,109100.0,0.47179461]
[1752059276060,0.0002,109110.0,109100.0,0.77520022]
[1752059277311,0.0002,109110.0,109100.0,0.77520114]
[1752059280180,0.0002,109110.0,109100.0,0.76877012]
[1752059280376,0.0002,109110.0,109100.0,0.77520127]
[1752059280843,0.33440561,109110.0,109100.0,0.21893173]
[1752059280986,0.33440561,109110.0,109100.0,0.26010016]
[1752059281206,0.0002,109110.0,109100.0,0.56350577]
[1752059281433,0.0002,109110.0,109100.0,0.52233734]
[1752059281655,0.0002,109110.0,109100.0,0.53813734]
[1752059282103,0.0002,109110.0,109100.0,0.5381373]
[1752059282751,0.0002,109110.0,109100.0,0.5223373]
[1752059285606,0.0002,109110.0,109100.0,0.21893169]
[1752059285814,0.0002,109110.0,109100.0,0.5223373]
[1752059287053,0.0002,109110.0,109100.0,0.21893169]
[1752059287263,0.0002,109110.0,109100.0,0.08041169]
[1752059287805,0.0002,109110.0,109100.0,0.3838173]
[1752059288026,0.0002,109110.0,109100.0,0.38381589]
[1752059289631,0.0002,109110.0,109100.0,0.42496162]
[1752059292639,0.0002,109110.0,109100.0,0.12155601]
[1752059292868,0.0002,109110.0,109100.0,0.42496162]
[1752059294136,0.0002,109110.0,109100.0,0.44005632]
[1752059296457,0.0002,109110.0,109100.0,0.39891059]
[1752059297478,0.0002,109110.0,109100.0,0.09550498]
[1752059297689,0.0002,109110.0,109100.0,0.38176654]
[1752059299771,0.0002,109110.0,109100.0,0.07836093]
[1752059299969,0.0002,109110.0,109100.0,0.38176654]
[1752059301016,0.0002,109110.0,109100.0,0.39726654]
[1752059303210,0.0002,109110.0,109100.0,0.09386093]
[1752059303429,0.0002,109110.0,109100.0,0.39726654]
[1752059308917,0.0002,109110.0,109100.0,0.39726761]
[1752059311751,0.0002,109110.0,109100.0,0.39726834]
[1752059314788,0.0002,109110.0,109100.0,0.78301788]
[1752059320541,0.0002,109110.0,109100.0,0.78301587]
[1752059322851,0.0002,109110.0,109100.0,0.92149587]
[1752059323460,0.0002,109110.0,109100.0,0.92149582]
[1752059329457,0.0002,109110.0,109100.0,0.92149611]
[1752059330747,0.0002,109110.0,109100.0,0.31468489]
[1752059331019,0.0002,109110.0,109100.0,0.92149611]
[1752059335432,0.0002,109110.0,109100.0,0.92149796]
[1752059338306,0.0002,109110.0,109100.0,0.92149844]
[1752059339541,0.0002,109110.0,109100.0,0.31468722]
[1752059339782,0.0002,109110.0,109100.0,0.92149844]
[1752059345484,0.0002,109110.0,109100.0,0.92149844]
[1752059346093,0.0002,109110.0,109100.0,0.31468897]
[1752059346288,0.0002,109110.0,109100.0,0.92150019]
[1752059349081,0.0002,109110.0,109100.0,0.866669]
[1752059349293,0.0002,109110.0,109100.0,0.92156757]
[1752059350406,0.0002,109110.0,109100.0,0.92156695]
[1752059351312,0.0002,109110.0,109100.0,0.92156387]
[1752059355237,0.0002,109110.0,109100.0,0.92156352]
[1752059355662,0.0002,109110.0,109100.0,0.92156346]
[1752059356070,0.0002,109110.0,109100.0,0.31475224]
[1752059356295,0.0002,109110.0,109100.0,0.92156346]
[1752059365741,0.0002,109110.0,109100.0,0.31475224]
[1752059365945,0.0002,109110.0,109100.0,0.61815785]
[1752059366141,0.0002,109110.0,109100.0,0.92156346]
[1752059369349,0.0002,109110.0,109100.0,0.86666797]
[1752059370359,0.0002,109110.0,109100.0,0.9581049]
[1752059386654,0.0002,109110.0,109100.0,0.35129368]
[1752059386851,0.0002,109110.0,109100.0,0.9581049]
[1752059399241,0.0002,109110.0,109100.0,0.95167208]
[1752059399414,0.0002,109110.0,109100.0,0.9581068]
[1752059405044,0.0002,109110.0,109100.0,0.35129558]
[1752059405245,0.0002,109110.0,109100.0,0.9581068]
[1752059407134,0.0002,109110.0,109100.0,0.95810719]
[1752059410084,0.0002,109110.0,109100.0,0.95810699]
[1752059421967,0.0002,109110.0,109100.0,0.95810631]
[1752059427767,0.0002,109110.0,109100.0,0.95810613]
[1752059430647,0.0002,109110.0,109100.0,0.95810604]
[1752059433520,0.0002,109110.0,109100.0,0.95810598]
[1752059439523,0.0002,109110.0,109100.0,0.95810555]
[1752059443877,0.0002,109110.0,109100.0,0.95599955]
[1752059451075,0.0002,109110.0,109100.0,0.95599768]
[1752059451273,0.0002,109110.0,109100.0,0.87365375]
[1752059451584,0.0002,109110.0,109100.0,0.87361375]
[1752059452225,0.0002,109110.0,109100.0,0.87461375]
[1752059452371,0.0002,109110.0,109100.0,0.87661375]
[1752059453355,0.0002,109110.0,109100.0,0.87561375]
[1752059453765,0.0002,109110.0,109100.0,0.87761375]
[1752059457222,0.0002,109110.0,109100.0,0.89476146]
[1752059461594,0.0002,109110.0,109100.0,0.89470594]
[1752059467753,0.0002,109110.0,109100.0,0.89470495]
[1752059470666,0.0002,109110.0,109100.0,0.89470516]
[1752059481315,0.0002,109110.0,109100.0,1.00467869]
[1752059481668,0.0002,109110.0,109100.0,0.39786747]
[1752059481865,0.0002,109110.0,109100.0,1.00467869]
[1752059482431,0.0002,109110.0,109100.0,1.0046797]
[1752059488251,0.0002,109110.0,109100.0,1.00467939]
[1752059490394,0.0053864,109120.0,109110.0,0.33480561]
[1752059490590,0.0053864,109120.0,109110.0,0.80891447]
[1752059491148,0.0053864,109120.0,109110.0,0.79176676]
[1752059491515,0.0053864,109120.0,109110.0,0.80891369]
[1752059493531,0.0053864,109120.0,109110.0,0.80890148]
[1752059494384,0.0053864,109120.0,109110.0,0.80890085]
[1752059496392,0.00530058,109120.0,109110.0,0.80890085]
[1752059497694,0.00530058,109120.0,109110.0,0.72660815]
[1752059498968,0.00534714,109120.0,109110.0,0.72660815]
[1752059499375,0.00534714,109120.0,109110.0,0.80882802]
[1752059499894,0.00534714,109120.0,109110.0,0.80880987]
[1752059501559,0.00534714,109120.0,109110.0,0.80880708]
[1752059503104,0.00534714,109120.0,109110.0,0.79168444]
[1752059503362,0.00534714,109120.0,109110.0,0.80880586]
[1752059504317,0.00534714,109120.0,109110.0,0.50540025]
[1752059504721,0.00534714,109120.0,109110.0,0.72658599]
[1752059504926,0.00534714,109120.0,109110.0,0.80877601]
[1752059506120,0.00534714,109120.0,109110.0,0.50536775]
[1752059506365,0.00534714,109120.0,109110.0,0.80877336]
[1752059508936,0.00534714,109120.0,109110.0,0.80877198]
[1752059512058,0.00534714,109120.0,109110.0,0.50536637]
[1752059512258,0.00534714,109120.0,109110.0,0.80877198]
[1752059512519,0.00534714,109120.0,109110.0,0.72658196]
[1752059514869,0.00534714,109120.0,109110.0,0.70304254]
[1752059515170,0.00534714,109120.0,109110.0,0.72657983]
[1752059517959,0.00534714,109120.0,109110.0,0.72658103]
[1752059522240,0.34385653,109140.0,109110.0,0.72658103]
[1752059522449,0.05503833,109140.0,109130.0,0.04111104]
[1752059522652,0.35844394,109140.0,109130.0,0.06464953]
[1752059522997,0.35844394,109140.0,109130.0,0.06465308]
[1752059523197,0.05503833,109140.0,109130.0,0.06465308]
[1752059523398,0.35844394,109140.0,109130.0,0.06465308]
[1752059523536,0.35844394,109140.0,109130.0,0.06466752]
[1752059523734,0.36044394,109140.0,109130.0,0.04753553]
[1752059524345,0.36244394,109140.0,109130.0,0.04753553]
[1752059525364,0.05703833,109140.0,109130.0,0.04753553]
[1752059525570,0.36044394,109140.0,109130.0,0.04753553]
[1752059525746,0.36044394,109140.0,109130.0,0.0475365]
[1752059526560,0.36244394,109140.0,109130.0,0.0475365]
[1752059527184,0.35325302,109140.0,109130.0,0.0475365]
[1752059527364,0.35325302,109140.0,109130.0,0.10235122]
[1752059527563,0.04984741,109140.0,109130.0,0.10235122]
[1752059528533,0.04984741,109140.0,109130.0,0.09592576]
[1752059528740,0.04984741,109140.0,109130.0,0.10235243]
[1752059531734,0.18856741,109140.0,109130.0,0.10235204]
[1752059531933,0.17276741,109140.0,109130.0,0.10235204]
[1752059532137,0.15756741,109140.0,109130.0,0.10235204]
[1752059534027,0.14302656,109140.0,109130.0,0.10235204]
[1752059534589,0.44643217,109140.0,109130.0,0.10235204]
[1752059535761,0.14302656,109140.0,109130.0,0.10235204]
[1752059537801,0.44643217,109140.0,109130.0,0.10235204]
[1752059539033,0.14302656,109140.0,109130.0,0.10235204]
[1752059539268,0.44643217,109140.0,109130.0,0.10235204]
[1752059539476,0.14302656,109140.0,109130.0,0.10235204]
[1752059539682,0.44643217,109140.0,109130.0,0.10235204]
[1752059540519,0.44643217,109140.0,109130.0,0.10235237]
[1752059540928,0.44643217,109140.0,109130.0,0.09592576]
[1752059541130,0.44643217,109140.0,109130.0,0.10235237]
[1752059543435,0.44643217,109140.0,109130.0,0.10237236]
[1752059548495,0.14302656,109140.0,109130.0,0.11747236]
[1752059548728,0.14302656,109140.0,109130.0,0.13317236]
[1752059550220,0.00430656,109140.0,109130.0,0.43886881]
[1752059550427,0.14298656,109140.0,109130.0,0.43657797]
[1752059550887,0.14298656,109140.0,109130.0,0.13317236]
[1752059551111,0.14298656,109140.0,109130.0,0.43657797]
[1752059552434,0.14310656,109140.0,109130.0,0.43657797]
[1752059552645,0.14310656,109140.0,109130.0,0.39544694]
[1752059553747,0.00430656,109140.0,109130.0,0.25697727]
[1752059553960,0.00430656,109140.0,109130.0,0.78140497]
[1752059554165,0.00430656,109140.0,109130.0,0.7985387]
[1752059554827,0.00230656,109140.0,109130.0,0.7985387]
[1752059555046,0.00330656,109140.0,109130.0,0.7985387]
[1752059555500,0.00030656,109140.0,109130.0,0.79853568]
[1752059555717,0.00030656,109140.0,109130.0,0.72503667]
[1752059556159,0.00230656,109140.0,109130.0,0.72503667]
[1752059556618,0.00230656,109140.0,109130.0,0.42163106]
[1752059556848,0.00230656,109140.0,109130.0,0.72503667]
[1752059557786,0.00030656,109140.0,109130.0,0.72503667]
[1752059558487,0.00030656,109140.0,109130.0,0.72503586]
[1752059559510,0.00030656,109140.0,109130.0,0.64281377]
[1752059560736,0.00030656,109140.0,109130.0,0.33940816]
[1752059560949,0.00030656,109140.0,109130.0,0.64281377]
[1752059561756,0.00030656,109140.0,109130.0,0.33940816]
[1752059561915,0.00030656,109140.0,109130.0,0.64281377]
[1752059566750,0.00030656,109140.0,109130.0,0.33940816]
[1752059566954,0.00030656,109140.0,109130.0,0.64281377]
[1752059567190,0.00030656,109140.0,109130.0,0.64280383]
[1752059567551,0.00030656,109140.0,109130.0,0.6425668]
[1752059569460,0.00030656,109140.0,109130.0,0.72478889]
[1752059571612,0.00030656,109140.0,109130.0,0.42138328]
[1752059571829,0.00030656,109140.0,109130.0,0.72478889]
[1752059574240,0.00030656,109140.0,109130.0,0.6702112]
[1752059575855,0.00030656,109140.0,109130.0,0.58798911]
[1752059576308,0.00030656,109140.0,109130.0,0.2845835]
[1752059576522,0.00030656,109140.0,109130.0,0.35082702]
[1752059576712,0.00030656,109140.0,109130.0,0.67043263]
[1752059578295,0.00030656,109140.0,109130.0,0.36702702]
[1752059578943,0.00030656,109140.0,109130.0,0.36701706]
[1752059579911,0.00030656,109140.0,109130.0,0.67042267]
[1752059583814,0.00030656,109140.0,109130.0,0.67041647]
[1752059586700,0.00030656,109140.0,109130.0,0.67041094]
[1752059591426,0.00030656,109140.0,109130.0,0.67041027]
[1752059595742,0.00030656,109140.0,109130.0,0.36700466]
[1752059595951,0.00030656,109140.0,109130.0,0.67041027]
[1752059598642,0.00030656,109140.0,109130.0,0.67041726]
[1752059599477,0.00030656,109140.0,109130.0,0.58827374]
[1752059601440,0.00030656,109140.0,109130.0,0.58185716]
[1752059601650,0.00030656,109140.0,109130.0,0.58827669]
[1752059603559,0.00030656,109140.0,109130.0,0.28487108]
[1752059603745,0.00030656,109140.0,109130.0,0.58827669]
[1752059604418,0.00030656,109140.0,109130.0,0.5882873]
[1752059606624,0.00030656,109140.0,109130.0,0.28488169]
[1752059606807,0.00030656,109140.0,109130.0,0.5882873]
[1752059610494,0.00030656,109140.0,109130.0,0.28488169]
[1752059610714,0.00030656,109140.0,109130.0,0.5882873]
[1752059614448,0.00030656,109140.0,109130.0,0.26775646]
[1752059614665,0.00030656,109140.0,109130.0,0.57116207]
[1752059618295,0.00030656,109140.0,109130.0,0.26775646]
[1752059618594,0.00030656,109140.0,109130.0,0.09785646]
[1752059618795,0.30371217,109140.0,109130.0,0.31847302]
[1752059619415,0.00030656,109140.0,109130.0,0.31847302]
[1752059619619,0.30371217,109140.0,109130.0,0.31847302]
[1752059621586,0.30371217,109140.0,109130.0,0.37327487]
[1752059622245,0.30371217,109140.0,109130.0,0.37327715]
[1752059622914,0.30371217,109140.0,109130.0,0.39040094]
[1752059623761,0.30371217,109140.0,109130.0,0.29896401]
[1752059623981,0.00030656,109140.0,109130.0,0.29896401]
[1752059624172,0.30371217,109140.0,109130.0,0.29896401]
[1752059625033,0.30371217,109140.0,109130.0,0.29896238]
[1752059627008,0.30371217,109140.0,109130.0,0.29900238]
[1752059627638,0.00030656,109140.0,109130.0,0.29900238]
[1752059627854,0.00030656,109140.0,109130.0,0.63360799]
[1752059628055,0.00030656,109140.0,109130.0,0.63360631]
[1752059630037,0.30371217,109140.0,109130.0,0.3302007]
[1752059630244,0.00030656,109140.0,109130.0,0.63360631]
[1752059630459,0.30371217,109140.0,109130.0,0.3302007]
[1752059630854,0.30371217,109140.0,109130.0,0.3301989]
[1752059631926,0.00030656,109140.0,109130.0,0.31307842]
[1752059632342,0.00030656,109140.0,109130.0,0.61648403]
[1752059633598,0.00030656,109140.0,109130.0,0.31307842]
[1752059634190,0.00030656,109140.0,109130.0,0.31307861]
[1752059639003,0.30371217,109140.0,109130.0,0.31307861]
[1752059639405,0.00030656,109140.0,109130.0,0.61648422]
[1752059639611,0.00030656,109140.0,109130.0,0.56948115]
[1752059639921,0.00030656,109140.0,109130.0,0.39805534]
[1752059640123,0.00030656,109140.0,109130.0,0.70788152]
[1752059640492,0.00030656,109140.0,109130.0,0.40447591]
[1752059640709,0.00030656,109140.0,109130.0,0.70788152]
[1752059641988,0.00030656,109140.0,109130.0,0.40447627]
[1752059642241,0.00030656,109140.0,109130.0,0.70788188]
[1752059643065,0.00030656,109140.0,109130.0,0.40447627]
[1752059643524,0.00030656,109140.0,109130.0,0.65308003]
[1752059645767,0.30670561,109150.0,109130.0,0.65308129]
[1752059645985,0.30670561,109150.0,109140.0,0.09590471]
[1752059646179,0.30670561,109150.0,109140.0,0.1023269]
[1752059647037,0.30670561,109150.0,109140.0,0.10233001]
[1752059647817,0.30770561,109150.0,109140.0,0.10233001]
[1752059648225,0.0043,109150.0,109140.0,0.10233001]
[1752059648487,0.30770561,109150.0,109140.0,0.10233001]
[1752059648880,0.30870561,109150.0,109140.0,0.10233001]
[1752059651656,0.30870561,109150.0,109140.0,0.10233204]
[1752059656476,0.0053,109150.0,109140.0,0.10233204]
[1752059656687,0.30870561,109150.0,109140.0,0.10233204]
[1752059662922,0.0053,109150.0,109140.0,0.10233208]
[1752059663114,0.30870561,109150.0,109140.0,0.10233208]
[1752059663879,0.0206,109150.0,109140.0,0.10233208]
[1752059664087,0.30870561,109150.0,109140.0,0.10233208]
[1752059668797,0.30870561,109150.0,109140.0,0.10233258]
[1752059672039,0.44710561,109150.0,109140.0,0.10233258]
[1752059672853,0.44710561,109150.0,109140.0,0.11783258]
[1752059674626,0.44710561,109150.0,109140.0,0.11783212]
[1752059675048,0.1437,109150.0,109140.0,0.11783212]
[1752059675237,0.44710561,109150.0,109140.0,0.13353212]
[1752059676312,0.0053,109150.0,109140.0,0.13353212]
[1752059676518,0.44710561,109150.0,109140.0,0.13353212]
[1752059676898,0.1437,109150.0,109140.0,0.43693773]
[1752059677121,0.1437,109150.0,109140.0,0.13353212]
[1752059677332,0.0053,109150.0,109140.0,0.13353212]
[1752059677756,0.44710561,109150.0,109140.0,0.13353212]
[1752059677953,0.44710561,109150.0,109140.0,0.09242699]
[1752059678385,0.1437,109150.0,109140.0,0.13353888]
[1752059678620,0.44710561,109150.0,109140.0,0.13353888]
[1752059678826,0.1437,109150.0,109140.0,0.13353888]
[1752059679041,0.44710561,109150.0,109140.0,0.13353888]
[1752059679271,0.1437,109150.0,109140.0,0.13353888]
[1752059679480,0.44710561,109150.0,109140.0,0.13353888]
[1752059682003,0.1437,109150.0,109140.0,0.43694449]
[1752059683191,0.14378,109150.0,109140.0,0.43694449]
[1752059683402,0.14378,109150.0,109140.0,0.43694341]
[1752059683605,0.44718561,109150.0,109140.0,0.1335378]
[1752059683869,0.14378,109150.0,109140.0,0.43694341]
[1752059684749,0.14378,109150.0,109140.0,0.39583152]
[1752059685567,0.14378,109150.0,109140.0,0.09242591]
[1752059685944,0.14378,109150.0,109140.0,0.39583152]
[1752059686327,0.0053,109150.0,109140.0,0.39583107]
[1752059686526,0.14382,109150.0,109140.0,0.39583107]
[1752059690085,0.14382,109150.0,109140.0,0.09242546]
[1752059690300,0.14382,109150.0,109140.0,0.39583107]
[1752059691511,0.14382,109150.0,109140.0,0.09242546]
[1752059691698,0.14382,109150.0,109140.0,0.39583107]
[1752059692101,0.14382,109150.0,109140.0,0.39583008]
[1752059692988,0.14282,109150.0,109140.0,0.09242447]
[1752059693421,0.0043,109150.0,109140.0,0.09242447]
[1752059693997,0.0043,109150.0,109140.0,0.39583008]
[1752059694200,0.0043,109150.0,109140.0,0.09242447]
[1752059694611,0.0033,109150.0,109140.0,0.09242447]
[1752059695058,0.30670561,109150.0,109140.0,0.09242447]
[1752059695225,0.0033,109150.0,109140.0,0.09242447]
[1752059699518,0.0033,109150.0,109140.0,0.39583008]
[1752059702832,0.0033,109150.0,109140.0,0.09242447]
[1752059703035,0.0033,109150.0,109140.0,0.39583008]
[1752059705944,0.0033,109150.0,109140.0,0.09242447]
[1752059706317,0.0033,109150.0,109140.0,0.39583008]
[1752059706549,0.0033,109150.0,109140.0,0.47804664]
[1752059706947,0.0033,109150.0,109140.0,0.17464103]
[1752059707129,0.0033,109150.0,109140.0,0.47804664]
[1752059709267,0.0033,109150.0,109140.0,0.17464103]
[1752059709445,0.0033,109150.0,109140.0,0.47804664]
[1752059710702,0.0033,109150.0,109140.0,0.17464103]
[1752059710911,0.0033,109150.0,109140.0,0.47804664]
[1752059711960,0.0033,109150.0,109140.0,0.47804714]
[1752059712797,0.0033,109150.0,109140.0,0.17464153]
[1752059713009,0.0033,109150.0,109140.0,0.47804714]
[1752059714546,0.0033,109150.0,109140.0,0.17464153]
[1752059714756,0.0033,109150.0,109140.0,0.47804714]
[1752059715189,0.0033,109150.0,109140.0,0.17464153]
[1752059715398,0.0033,109150.0,109140.0,0.47804714]
[1752059718081,0.0033,109150.0,109140.0,0.47804712]
[1752059718517,0.0033,109150.0,109140.0,0.4780471]
[1752059718932,0.0033,109150.0,109140.0,0.6166871]
[1752059721921,0.0033,109150.0,109140.0,0.31328149]
[1752059723818,0.0033,109150.0,109140.0,0.17464149]
[1752059724239,0.0033,109150.0,109140.0,0.31336149]
[1752059729500,0.0033,109150.0,109140.0,0.31336195]
[1752059732579,0.0033,109150.0,109140.0,0.31336218]
[1752059735543,0.0033,109150.0,109140.0,0.31336298]
[1752059738729,0.001,109150.0,109140.0,0.31336298]
[1752059740959,0.001,109150.0,109140.0,0.17464298]
[1752059745941,0.1396,109150.0,109140.0,0.17464298]
[1752059746872,0.001,109150.0,109140.0,0.17464298]
[1752059747079,0.44300561,109150.0,109140.0,0.17464298]
[1752059747821,0.30440561,109150.0,109140.0,0.17464298]
[1752059748022,0.44300561,109150.0,109140.0,0.17464298]
[1752059749156,0.1396,109150.0,109140.0,0.17464298]
[1752059752083,0.1396,109150.0,109140.0,0.47804859]
[1752059755380,0.1396,109150.0,109140.0,0.17464298]
[1752059755794,0.1396,109150.0,109140.0,0.47804859]
[1752059757538,0.1396,109150.0,109140.0,0.17464298]
[1752059757743,0.1396,109150.0,109140.0,0.47804859]
[1752059761178,0.1396,109150.0,109140.0,0.47804884]
[1752059765403,0.1396,109150.0,109140.0,0.17464323]
[1752059765612,0.1396,109150.0,109140.0,0.47804884]
[1752059766515,0.1396,109150.0,109140.0,0.17464323]
[1752059766730,0.1396,109150.0,109140.0,0.47804884]
[1752059767729,0.44300561,109150.0,109140.0,0.17464323]
[1752059767949,0.1396,109150.0,109140.0,0.17464323]
[1752059769781,0.1396,109150.0,109140.0,0.17464312]
[1752059771055,0.1396,109150.0,109140.0,0.47804873]
[1752059771313,0.001,109150.0,109140.0,0.47804873]
[1752059771529,0.13944,109150.0,109140.0,0.47804873]
[1752059772397,0.13948,109150.0,109140.0,0.47804873]
[1752059773265,0.001,109150.0,109140.0,0.47804873]
[1752059773502,0.13948,109150.0,109140.0,0.47804873]
[1752059773724,0.13948,109150.0,109140.0,0.17464312]
[1752059773947,0.13948,109150.0,109140.0,0.47804873]
[1752059775297,0.13948,109150.0,109140.0,0.4780484]
[1752059775486,0.13948,109150.0,109140.0,0.17464279]
[1752059775732,0.13948,109150.0,109140.0,0.47804836]
[1752059778690,0.13948,109150.0,109140.0,0.47804828]
[1752059782086,0.001,109150.0,109140.0,0.78145389]
[1752059782295,0.00951528,109160.0,109140.0,1.09029374]
[1752059782492,0.00951528,109160.0,109150.0,1.31164066]